bitfinex/quotes_ETHUSD_20250214
["timestamp","ask_amount","ask_price","bid_price","bid_amount"]
[1739498553048,0.6129,2685.8,2685.4,3.72375]
[1739498553749,4.33621,2685.8,2685.4,3.72375]
[1739498554058,0.6129,2685.8,2685.4,3.72375]
[1739498554372,0.55,2685.9,2685.6,3.72354]
[1739498554582,0.55,2685.9,2685.5,3.72363]
[1739498554762,0.55,2685.9,2685.6,3.72355]
[1739498555793,0.55,2685.9,2685.5,3.72361]
[1739498556366,4.27323,2685.9,2685.4,3.72375]
[1739498556665,4.27323,2685.9,2685.5,0.07460002]
[1739498556867,0.55,2685.9,2685.6,3.72349]
[1739498557173,0.55,2685.9,2685.4,3.72375]
[1739498557484,0.55,2685.9,2685.5,3.79829002]
[1739498557690,0.55,2685.9,2685.6,3.72356]
[1739498558193,0.55,2685.9,2685.7,0.07460002]
[1739498559092,4.27328,2685.8,2685.4,3.72376]
[1739498559457,4.27328,2685.8,2685.5,0.07483762]
[1739498559658,0.55,2685.7,2685.5,0.07483762]
[1739498559853,4.27342,2685.7,2685.5,0.07483762]
[1739498560089,4.27342,2685.7,2685.2,4.53309]
[1739498560298,0.55,2685.7,2685.6,0.07483762]
[1739498560454,4.27342,2685.7,2685.3,3.72393]
[1739498560654,4.27342,2685.7,2685.6,0.07483762]
[1739498560856,3.72356,2685.6,2685.2,4.53311]
[1739498561187,2.789,2685.8,2685.3,3.79879762]
[1739498561395,6.51235,2685.8,2685.3,3.79879762]
[1739498561797,10.23575,2685.8,2685.3,3.79879762]
[1739498562357,3.7235,2685.7,2685.3,0.07483762]
[1739498562553,4.88654,2685.6,2685.3,0.07483762]
[1739498562779,7.12554,2685.6,2685.1,3.72425]
[1739498562951,7.12554,2685.6,2685.2,0.07483762]
[1739498562952,0.55,2685.4,2685.2,0.07483762]
[1739498563774,0.55,2685.5,2685.2,0.07483762]
[1739498563985,0.55,2685.5,2685.2,3.79888762]
[1739498564161,0.55,2685.5,2685.2,0.07483762]
[1739498565088,4.27379,2685.5,2685.2,0.07483762]
[1739498565303,3.72384,2685.4,2685.2,0.07483762]
[1739498565498,0.55,2685.5,2685.2,0.07483762]
[1739498565804,4.27372,2685.5,2685.2,0.07483762]
[1739498567712,0.55,2685.5,2685.2,0.07483762]
[1739498568034,3.7239,2685.4,2685.2,0.07483762]
[1739498569905,0.55,2685.5,2685.2,0.07483762]
[1739498570064,0.55,2685.5,2685.2,3.79893762]
[1739498570269,0.55,2685.5,2685.2,0.07483762]
[1739498570492,1.289547,2685.5,2685.2,0.07483762]
[1739498570696,5.013267,2685.5,2685.2,0.07483762]
[1739498571119,0.55,2685.3,2685.2,0.07483762]
[1739498571416,6.51297,2685.3,2685.2,0.07483762]
[1739498571633,7.12587,2685.3,2685.1,1e-05]
[1739498571842,6.44447028,2685.2,2685.1,1e-05]
[1739498572502,6.44447028,2685.2,2685.1,0.07583935]
[1739498572706,6.44447028,2685.2,2685.1,1e-05]
[1739498572917,2.72036028,2685.2,2685.1,0.07583935]
[1739498573228,6.44447028,2685.2,2685.1,0.07583935]
[1739498574314,2.72036028,2685.2,2685.1,0.07583935]
[1739498576208,4.33611,2685.9,2685.4,3.72375]
[1739498576393,0.27,2685.7,2685.5,0.07645256]
[1739498576805,0.55,2685.6,2685.5,0.07645256]
[1739498577010,4.27356,2685.6,2685.2,3.72403]
[1739498577207,10.23623,2685.6,2685.3,0.07630493]
[1739498577422,10.23623,2685.6,2685.1,1e-05]
[1739498577423,3.72378,2685.5,2685.1,1e-05]
[1739498577632,3.72378,2685.5,2685.2,0.07630493]
[1739498577920,7.12585,2685.4,2685.2,0.07630493]
[1739498578121,10.84978,2685.4,2685.2,0.07630493]
[1739498578314,7.12583,2685.4,2685.2,0.07630493]
[1739498578515,6.675553,2685.3,2685.2,0.07630493]
[1739498578719,7.225553,2685.3,2685.2,0.07630493]
[1739498579426,3.501583,2685.3,2685.2,0.07630493]
[1739498579631,2.789,2685.3,2685.2,0.07630493]
[1739498580495,0.55,2685.3,2685.2,0.07630493]
[1739498580933,4.33634,2685.7,2685.2,0.07630493]
[1739498580934,4.33632,2685.7,2685.3,3.72394]
[1739498581140,0.55,2685.6,2685.2,0.84720493]
[1739498581433,4.27371,2685.5,2685.1,1e-05]
[1739498581594,0.55,2685.3,2685.2,0.07622292]
[1739498585180,0.55,2685.3,2685.2,3.80033292]
[1739498585461,0.55,2685.3,2685.2,0.07622292]
[1739498587162,2.789,2685.3,2685.2,0.07622292]
[1739498587361,0.55,2685.3,2685.2,0.07622292]
[1739498587529,5.32,2685.5,2685.2,3.80027292]
[1739498587738,9.04373,2685.5,2685.2,0.07622292]
[1739498588062,5.32,2685.5,2685.2,0.07622292]
[1739498588569,5.32,2685.5,2685.2,3.80027292]
[1739498588924,0.55,2685.6,2685.2,3.80027292]
[1739498589441,4.27364,2685.6,2685.2,0.07622292]
[1739498589818,4.27364,2685.6,2685.2,3.80033292]
[1739498590621,4.27364,2685.6,2685.2,0.07622292]
[1739498590818,0.55,2685.6,2685.2,3.80029292]
[1739498591518,4.2736,2685.6,2685.2,3.80029292]
[1739498591718,11.28223,2685.9,2685.3,0.8085]
[1739498591885,15.27547,2685.9,2685.4,3.72374]
[1739498592215,4.27329,2685.8,2685.4,0.07645249]
[1739498592382,4.27329,2685.8,2685.4,3.80028249]
[1739498592577,4.27329,2685.8,2685.4,0.07645249]
[1739498592578,0.55,2685.8,2685.4,0.07645249]
[1739498592778,0.55,2685.8,2685.6,3.72353]
[1739498593018,2.239,2686.1,2685.8,3.72327]
[1739498593219,5.32,2686.2,2685.9,3.79950249]
[1739498593998,5.32,2686.2,2685.9,0.07645249]
[1739498594192,5.32,2686.2,2686.1,0.8331]
[1739498594516,3.72246,2686.4,2686.1,0.90915078]
[1739498594739,0.55,2686.4,2686.1,0.90915078]
[1739498594931,4.27246,2686.4,2686.1,0.90915078]
[1739498595434,3.7226,2686.3,2686.1,0.90915078]
[1739498596342,0.55,2686.5,2686.1,0.90915078]
[1739498596548,0.55,2686.5,2686.1,4.63193078]
[1739498597346,0.55,2686.5,2686.1,0.90915078]
[1739498597347,4.27238,2686.5,2686.1,0.90915078]
[1739498598005,3.72252,2686.4,2686.1,0.90915078]
[1739498599436,3.72273,2686.2,2686.1,0.90915078]
[1739498599642,3.72268,2686.3,2686.1,0.07605078]
[1739498599796,3.72268,2686.3,2685.9,0.7857]
[1739498600000,3.72268,2686.3,2686.0,0.07605078]
[1739498601303,3.72275,2686.2,2686.0,0.07605078]
[1739498601516,3.72286,2686.1,2686.0,0.07605078]
[1739498601713,5.072414,2686.1,2686.0,0.07605078]
[1739498602033,0.55,2685.8,2685.4,4.48012]
[1739498602240,4.27331,2685.8,2685.5,0.07605078]
[1739498602445,4.27331,2685.8,2685.4,4.48012]
[1739498602642,0.55,2685.6,2685.4,0.7563]
[1739498602845,0.55,2685.6,2685.5,0.07605078]
[1739498603029,4.27356,2685.6,2685.5,0.07605078]
[1739498603236,3.72386,2685.4,2685.1,0.77711]
[1739498603434,3.72386,2685.4,2685.2,0.07534574]
[1739498604622,3.72397,2685.3,2685.2,0.07534574]
[1739498610260,4.27397,2685.3,2685.2,0.07534574]
[1739498610459,0.55,2685.2,2685.1,1e-05]
[1739498610655,4.27411,2685.2,2685.1,0.0684459]
[1739498613343,4.27411,2685.2,2685.1,1e-05]
[1739498614157,4.88701,2685.2,2685.1,1e-05]
[1739498614357,14.21301,2685.2,2685.1,1e-05]
[1739498615774,19.53301,2685.2,2685.1,1e-05]
[1739498616823,21.77201,2685.2,2685.1,1e-05]
[1739498627198,21.77951,2685.2,2685.1,1e-05]
[1739498627455,9.02489947,2685.2,2685.1,0.80221]
[1739498627607,0.6129,2686.6,2685.1,0.80221]
[1739498627608,0.19014497,2686.5,2685.9,4.52526]
[1739498627813,3.72165,2687.0,2686.1,3.72278]
[1739498627814,0.6129,2686.9,2686.1,3.72278]
[1739498628034,0.6129,2687.2,2686.6,3.72216]
[1739498628227,0.275,2687.0,2686.6,3.72216]
[1739498628538,2.514,2687.0,2686.7,0.06438525]
[1739498628721,6.23563,2687.0,2686.4,4.5246]
[1739498628918,6.23563,2687.0,2686.8,0.06438525]
[1739498629168,4.33429,2687.2,2686.4,0.8022]
[1739498629335,3.99639,2687.2,2686.9,0.06438525]
[1739498629543,0.275,2687.4,2686.7,3.72203]
[1739498629722,6.71418771,2687.4,2687.0,0.06205691]
[1739498629933,0.55,2687.3,2686.7,3.72203]
[1739498630144,0.55,2687.3,2687.1,0.06205691]
[1739498630330,0.55,2687.3,2686.7,3.72203]
[1739498630543,6.71418771,2687.4,2686.7,3.72203]
[1739498630866,10.43536771,2687.4,2686.8,0.06205691]
[1739498631078,0.74186957,2687.3,2686.8,0.06205691]
[1739498631275,4.46308957,2687.3,2686.8,0.06205691]
[1739498631479,4.46308957,2687.3,2686.7,3.72203]
[1739498631766,0.55,2687.2,2686.8,3.72188]
[1739498631974,0.275,2687.4,2687.1,3.72146]
[1739498632186,0.90222271,2687.4,2687.0,4.49549]
[1739498632465,0.55,2687.3,2687.2,0.06086833]
[1739498632628,0.55,2687.5,2687.0,4.49551]
[1739498632967,3.99671,2687.7,2687.1,3.72139]
[1739498633135,0.55,2687.6,2687.1,3.78173404]
[1739498633341,0.427071,2687.5,2687.1,3.78173404]
[1739498634265,0.55,2687.7,2687.1,3.78173404]
[1739498634469,4.27073,2687.7,2687.1,3.78173404]
[1739498635002,3.72101,2687.5,2687.1,0.06034404]
[1739498635156,0.55,2687.4,2687.1,0.06034404]
[1739498635351,0.977101,2687.4,2687.1,0.06034404]
[1739498635658,3.57005749,2687.7,2687.1,0.06034404]
[1739498635864,3.7197,2688.4,2687.3,0.7767]
[1739498636069,10.16585,2688.3,2687.7,3.72057]
[1739498636470,3.71999,2688.2,2687.7,3.72057]
[1739498636691,0.55,2688.1,2687.7,3.72057]
[1739498636990,0.55,2688.1,2687.8,0.05805464]
[1739498637184,3.71999,2688.2,2687.7,3.72057]
[1739498637396,3.71999,2688.2,2687.9,0.0580556]
[1739498637583,0.55,2688.1,2687.7,3.72057]
[1739498637785,0.55,2688.1,2688.0,0.0580556]
[1739498638098,0.55,2688.1,2687.8,0.7578]
[1739498638471,0.55,2688.1,2687.9,0.0580556]
[1739498638895,0.55,2688.1,2687.8,0.7578]
[1739498639050,0.55,2688.1,2688.0,0.0580556]
[1739498639475,0.55,2688.1,2687.8,0.7578]
[1739498639878,0.55,2688.1,2687.9,0.0580556]
[1739498640103,3.71999,2688.2,2687.9,0.0580556]
[1739498640104,3.57005749,2688.0,2687.9,0.0580556]
[1739498640377,3.57005749,2688.0,2687.1,0.8276]
[1739498640378,3.72121,2687.3,2687.1,0.8276]
[1739498640618,0.829,2687.5,2687.1,0.8276]
[1739498640916,0.279,2687.5,2687.3,3.72108]
[1739498641114,0.279,2687.5,2687.4,3.72106]
[1739498641525,0.279,2687.5,2687.4,3.76547327]
[1739498641829,0.279,2688.1,2687.6,3.72071]
[1739498642115,0.279,2688.1,2687.1,4.54902]
[1739498642116,0.55,2687.8,2687.7,0.04460139]
[1739498642506,0.55,2687.8,2687.3,3.7211]
[1739498642706,0.55,2687.8,2687.7,0.04458503]
[1739498642904,3.7207,2687.7,2687.2,3.72134]
[1739498643125,4.68251575,2687.8,2687.3,0.04458503]
[1739498643427,4.68251575,2687.8,2687.2,3.72134]
[1739498643624,0.55,2687.8,2687.4,3.76564503]
[1739498643826,0.55,2687.8,2687.4,3.72106]
[1739498643984,0.55,2687.8,2687.5,0.04441327]
[1739498644186,3.72066,2687.7,2687.5,0.04441327]
[1739498644386,3.72066,2687.7,2687.2,3.72125]
[1739498644629,4.27052,2687.8,2687.1,0.8276]
[1739498644630,3.7208,2687.6,2687.1,7.54906]
[1739498644794,3.72071,2687.7,2687.3,0.0444051]
[1739498645144,4.12005749,2687.6,2686.9,0.8235]
[1739498645304,3.72156,2687.1,2686.5,3.72222]
[1739498645490,3.72156,2687.1,2686.6,7.54559]
[1739498646221,3.72156,2687.1,2686.6,3.8235]
[1739498646401,3.72165,2687.0,2686.6,3.8235]
[1739498646684,7.44316,2687.1,2686.6,3.8235]
[1739498646881,3.72156,2687.1,2686.6,7.54555]
[1739498647081,3.72156,2687.1,2686.6,3.8235]
[1739498647520,0.55,2687.2,2686.6,0.8235]
[1739498647720,3.72162,2687.0,2686.7,0.0444051]
[1739498648415,4.96862575,2687.2,2686.7,0.0444051]
[1739498648593,3.72155,2687.1,2686.7,0.0444051]
[1739498649631,1.24719575,2687.2,2686.7,0.0444051]
[1739498649826,3.72164,2687.0,2686.7,0.0444051]
[1739498650455,4.27156,2687.1,2686.7,0.0444051]
[1739498653165,3.72094,2687.5,2686.7,3.80364463]
[1739498653166,3.72102,2687.5,2686.7,3.80364463]
[1739498653463,3.99907,2687.4,2686.9,3.72175]
[1739498653668,0.55,2687.3,2686.8,3.72188]
[1739498653864,4.27122,2687.3,2687.0,0.04553387]
[1739498654042,4.27122,2687.3,2686.8,3.72188]
[1739498654245,4.27122,2687.3,2687.1,0.04554205]
[1739498654463,3.72135,2687.2,2686.8,3.72188]
[1739498655338,4.27122,2687.3,2686.8,7.4437]
[1739498655769,4.27122,2687.3,2686.8,3.72182]
[1739498656165,3.7214,2687.2,2686.7,3.72202]
[1739498656868,3.7214,2687.2,2686.6,4.54564]
[1739498657063,0.55,2687.3,2686.8,3.72177]
[1739498657366,0.55,2687.3,2686.9,3.72164]
[1739498657568,12.61093749,2687.6,2687.1,4.53269]
[1739498657569,5.32,2687.6,2687.1,4.53269]
[1739498657725,5.598,2687.6,2687.2,3.72124]
[1739498657919,0.55,2687.5,2687.3,3.72119]
[1739498658325,7.44088,2687.9,2687.3,4.546575]
[1739498658559,3.7204,2687.9,2687.4,3.72099]
[1739498658773,7.44086,2687.9,2687.4,3.72099]
[1739498658952,3.72053,2687.8,2687.3,4.546575]
[1739498659672,3.72067,2687.7,2687.3,4.546575]
[1739498660468,3.72052,2687.8,2687.4,4.1757175]
[1739498660676,4.27033,2688.0,2687.6,0.756]
[1739498660967,3.72038,2687.9,2687.6,0.756]
[1739498661172,3.72052,2687.8,2687.6,0.756]
[1739498661473,4.27081,2687.6,2687.4,0.756]
[1739498661982,0.55,2687.4,2687.1,0.756]
[1739498662349,4.27113,2687.4,2687.1,0.756]
[1739498663648,3.7212,2687.3,2687.1,0.756]
[1739498663833,3.72116,2687.4,2687.1,0.756]
[1739498664033,3.72116,2687.4,2686.9,3.7217]
[1739498664345,3.57005749,2687.6,2686.9,0.7963]
[1739498664543,0.6129,2688.2,2686.6,3.72208]
[1739498664544,3.72002,2688.2,2687.1,3.0]
[1739498664731,3.72011,2688.1,2687.7,0.7963]
[1739498666118,3.7203,2688.0,2687.7,0.7963]
[1739498666611,3.7204,2687.9,2687.7,0.7963]
[1739498668114,2.239,2688.1,2687.7,0.7963]
[1739498668273,4.12005749,2688.0,2687.4,0.8143]
[1739498668474,0.55,2687.6,2687.1,0.7509]
[1739498668670,4.27079,2687.6,2687.5,0.04462588]
[1739498668895,3.72105,2687.5,2687.1,0.7509]
[1739498669295,3.72105,2687.5,2687.2,0.04447868]
[1739498669840,0.55,2687.6,2687.2,3.76575868]
[1739498669994,3.72049,2687.9,2687.3,0.45166587]
[1739498670200,7.90327749,2688.0,2687.4,3.72101]
[1739498670401,3.99932,2688.0,2687.5,4.47175]
[1739498670601,3.72032,2688.0,2687.5,4.47175]
[1739498670995,3.72032,2688.0,2687.6,0.04474856]
[1739498671432,5.32,2688.1,2687.6,0.49639842]
[1739498671595,9.04016,2688.1,2687.6,4.21708842]
[1739498672009,9.04016,2688.1,2687.7,3.72065]
[1739498672205,9.04016,2688.1,2687.7,3.76512867]
[1739498672619,3.72024,2688.0,2687.7,0.04447867]
[1739498673302,9.04016,2688.1,2687.7,0.04447867]
[1739498674319,9.04016,2688.1,2687.7,0.54125152]
[1739498674735,3.72023,2688.0,2687.7,0.54125152]
[1739498675054,3.72051,2687.8,2687.7,0.04447867]
[1739498675416,3.72037,2687.9,2687.5,0.7509]
[1739498676050,7.44082,2687.9,2687.6,0.04447867]
[1739498676205,3.72037,2687.9,2687.6,0.04447867]
[1739498676400,3.72065,2687.7,2687.6,0.04447867]
[1739498677625,0.55,2687.9,2687.6,0.04447867]
[1739498677818,3.72052,2687.8,2687.6,0.04447867]
[1739498678344,7.44113,2687.8,2687.6,0.04447867]
[1739498678915,3.72052,2687.8,2687.6,0.04447867]
[1739498679103,3.72065,2687.7,2687.6,0.04447867]
[1739498679502,3.72072,2687.7,2687.6,0.04447049]
[1739498679746,3.72072,2687.7,2687.3,0.8028]
[1739498680051,3.72052,2687.8,2687.4,3.76551049]
[1739498680570,4.27038,2687.9,2687.4,3.76542049]
[1739498680770,5.32,2688.1,2687.7,3.72053]
[1739498680939,5.32,2688.1,2687.8,3.72045]
[1739498681139,5.32,2688.1,2687.7,3.72056]
[1739498681468,5.32,2688.1,2687.8,4.22005295]
[1739498681669,0.278,2688.5,2688.0,4.53206]
[1739498681670,3.99763,2688.5,2688.0,4.53206]
[1739498681870,3.71976,2688.4,2688.0,0.8119]
[1739498682374,3.71976,2688.4,2688.1,0.04401259]
[1739498682672,3.71984,2688.3,2688.1,0.04401259]
[1739498683575,3.99763,2688.5,2688.1,0.04401259]
[1739498683776,3.71963,2688.5,2688.1,3.76407259]
[1739498684139,4.26936,2688.7,2688.1,0.87363285]
[1739498684140,3.71936,2688.7,2688.1,0.87363285]
[1739498684329,3.7195,2688.6,2688.1,4.59366285]
[1739498684978,4.26926,2688.7,2688.1,0.87363285]
[1739498685175,3.7197,2688.4,2688.1,0.87363285]
[1739498685546,3.71982,2688.3,2688.1,0.87363285]
[1739498686070,3.71982,2688.3,2688.1,0.04401259]
[1739498686241,3.71996,2688.2,2688.1,0.04401259]
[1739498686654,3.71979,2688.4,2688.1,0.04401259]
[1739498686842,3.71982,2688.3,2688.1,0.04401259]
[1739498687461,4.26954,2688.5,2688.1,0.04401259]
[1739498688075,7.98919,2688.5,2688.1,0.04401259]
[1739498688593,7.9892,2688.5,2688.1,0.04401259]
[1739498689096,3.71975,2688.4,2688.1,0.04401259]
[1739498689303,3.71996,2688.2,2688.1,0.04401259]
[1739498692877,3.71996,2688.2,2688.0,0.8119]
[1739498693082,3.71996,2688.2,2688.1,0.04348579]
[1739498693689,3.71984,2688.3,2688.1,0.04348579]
[1739498694600,3.71959,2688.5,2688.1,0.04348579]
[1739498695518,3.71975,2688.4,2688.1,0.04348579]
[1739498696539,3.71949,2688.6,2688.1,3.76356579]
[1739498696744,3.71938,2688.7,2688.3,3.71981]
[1739498697110,3.71938,2688.7,2688.4,0.04340406]
[1739498697310,3.71941,2688.6,2688.4,0.04340406]
[1739498697741,3.71941,2688.6,2688.2,4.48275]
[1739498698245,3.71941,2688.6,2688.3,0.04340406]
[1739498698460,7.43874,2688.7,2688.3,0.04340406]
[1739498698636,3.71936,2688.7,2688.3,0.04340406]
[1739498699326,3.71941,2688.6,2688.3,0.04340406]
[1739498700249,3.71915,2688.8,2688.3,4.26156602]
[1739498700616,3.71926,2688.7,2688.3,4.26156602]
[1739498700952,3.71915,2688.8,2688.3,7.98124602]
[1739498701147,3.71915,2688.8,2688.3,4.26148602]
[1739498701333,7.43837,2688.8,2688.3,4.26157602]
[1739498701536,0.55,2688.9,2688.4,0.5024376]
[1739498701736,0.55,2688.8,2688.3,0.04340406]
[1739498702053,3.7194,2688.6,2688.2,0.7628]
[1739498702358,3.71962,2688.5,2688.4,0.0432406]
[1739498702654,3.71962,2688.5,2688.4,0.04316705]
[1739498702874,3.71962,2688.5,2688.2,0.7628]
[1739498703050,3.71954,2688.5,2688.4,0.04316705]
[1739498703375,4.33218,2688.7,2688.4,0.04316705]
[1739498703575,4.26923,2688.8,2688.4,0.45258271]
[1739498703739,4.26923,2688.8,2688.5,0.04329781]
[1739498704575,3.71929,2688.7,2688.5,0.04329781]
[1739498705480,3.56813345,2689.0,2688.5,0.04329781]
[1739498705677,3.71909,2688.9,2688.6,0.7788]
[1739498706045,3.71909,2688.9,2688.7,0.04326512]
[1739498706954,3.71913,2688.8,2688.7,0.04326512]
[1739498707886,3.71909,2688.9,2688.7,0.04326512]
[1739498708258,4.26887,2689.0,2688.7,0.04326512]
[1739498709056,5.32,2689.2,2688.7,0.49742463]
[1739498709255,5.32,2689.2,2688.9,3.71887]
[1739498709453,5.32,2689.2,2689.0,0.7566]
[1739498709788,3.71818,2689.5,2689.0,0.79883558]
[1739498710113,3.71775,2689.8,2689.2,0.795]
[1739498710308,3.71775,2689.8,2689.3,3.71835]
[1739498710481,3.71775,2689.8,2689.3,4.21192058]
[1739498710678,3.71775,2689.8,2689.4,3.71829]
[1739498710882,3.71775,2689.8,2689.4,3.7603459]
[1739498711079,2.239,2690.3,2689.5,4.53957]
[1739498711281,4.32986,2690.4,2689.7,3.7178]
[1739498711482,3.71696,2690.4,2689.8,4.5763871]
[1739498711686,3.71696,2690.4,2689.8,4.618443]
[1739498711994,3.71719,2690.2,2689.8,0.8635559]
[1739498712170,7.43401,2690.4,2689.8,0.8635559]
[1739498712371,3.7171,2690.3,2689.8,0.8635559]
[1739498712610,3.7171,2690.3,2689.9,0.54108586]
[1739498713108,3.71701,2690.4,2690.0,0.04060683]
[1739498713295,3.71699,2690.4,2690.0,0.04060683]
[1739498713479,3.71706,2690.3,2690.0,0.04060683]
[1739498715082,3.71686,2690.5,2690.0,0.04060683]
[1739498715413,3.71686,2690.5,2690.1,0.7675]
[1739498715613,3.71686,2690.5,2690.1,0.80772322]
[1739498715817,3.71693,2690.4,2690.1,0.80772322]
[1739498715983,3.71713,2690.3,2690.1,0.80772322]
[1739498716810,3.71693,2690.4,2690.1,0.80772322]
[1739498717112,3.71678,2690.5,2690.1,0.80772322]
[1739498717315,3.71691,2690.5,2690.2,0.45623239]
[1739498717812,3.71691,2690.5,2690.3,0.04003554]
[1739498718014,3.71671,2690.6,2690.2,0.45623239]
[1739498718215,3.71691,2690.4,2690.2,0.45623239]
[1739498718593,3.71705,2690.3,2690.2,0.45623239]
[1739498718792,3.71705,2690.3,2690.1,0.7675]
[1739498719402,3.71719,2690.2,2690.1,0.7675]
[1739498719981,3.71705,2690.3,2690.1,0.7675]
[1739498720685,7.43422,2690.3,2690.1,0.7675]
[1739498721016,7.43377,2690.5,2690.1,0.7675]
[1739498721221,3.71706,2690.3,2690.1,1.216007]
[1739498721588,3.71706,2690.3,2690.2,0.04002738]
[1739498721919,3.71692,2690.4,2690.2,0.04002738]
[1739498722084,3.71705,2690.3,2690.2,0.04002738]
[1739498724025,3.71692,2690.4,2690.2,0.04002738]
[1739498725452,3.71692,2690.4,2690.2,0.49252612]
[1739498725710,3.71678,2690.5,2690.2,0.49252612]
[1739498726188,3.71664,2690.6,2690.2,0.49252612]
[1739498726348,3.71692,2690.4,2690.2,0.49252612]
[1739498726754,3.71684,2690.5,2690.2,0.49252612]
[1739498727053,3.71684,2690.5,2690.3,0.49773361]
[1739498727300,3.71684,2690.5,2690.3,0.53720601]
[1739498728295,0.03716,2690.8,2690.7,7.4965]
[1739498728588,0.6129,2692.4,2691.5,0.765]
[1739498728885,0.277,2692.6,2691.5,0.765]
[1739498728886,0.277,2692.6,2692.1,3.71453]
[1739498729097,4.5105697,2692.7,2691.7,3.0]
[1739498729305,3.71397,2692.6,2692.1,0.765]
[1739498729507,4.5105097,2692.7,2692.1,4.47955]
[1739498729675,3.8605097,2692.7,2692.1,4.47955]
[1739498729875,0.1467397,2692.7,2692.5,3.71398]
[1739498730177,0.005,2693.4,2693.3,3.71291]
[1739498730377,0.005,2693.4,2693.3,11.04604345]
[1739498730576,4.35893345,2695.0,2693.9,0.765]
[1739498730886,3.71151,2694.4,2694.0,0.03623584]
[1739498731062,3.71168,2694.2,2694.0,0.03623584]
[1739498731416,3.71181,2694.1,2694.0,0.03623584]
[1739498731576,3.71181,2694.1,2693.5,0.8228]
[1739498731764,3.71196,2694.0,2693.5,0.8228]
[1739498731964,0.371168,2694.2,2693.6,0.03515684]
[1739498732197,3.71239,2693.7,2693.5,0.8228]
[1739498732584,3.7121,2693.9,2693.6,0.16734768]
[1739498732854,3.71223,2693.8,2693.6,0.16734768]
[1739498733690,3.71183,2694.1,2693.6,0.16734768]
[1739498733892,3.71212,2693.9,2693.6,0.16734768]
[1739498734492,3.71236,2693.7,2693.6,0.16734768]
[1739498734690,3.71292,2693.3,2692.7,0.8228]
[1739498734909,3.7133,2693.1,2692.7,0.8228]
[1739498735206,3.7133,2693.1,2692.8,0.16733955]
[1739498735207,3.71348,2692.9,2692.8,0.16733955]
[1739498735521,3.71369,2692.8,2692.3,0.8041]
[1739498735691,3.71391,2692.6,2692.3,0.8041]
[1739498736573,3.71369,2692.8,2692.4,0.16733955]
[1739498736781,3.71376,2692.7,2692.4,0.16733955]
[1739498737022,3.71389,2692.6,2692.4,0.16733955]
[1739498737992,3.71365,2692.8,2692.4,0.16733955]
[1739498738696,3.71309,2693.2,2692.5,3.75105716]
[1739498739219,3.71309,2693.2,2692.6,0.16733955]
[1739498739423,3.71335,2693.0,2692.6,0.16733955]
[1739498739626,3.71309,2693.2,2692.6,0.16733955]
[1739498739784,3.71284,2693.4,2692.8,3.7136]
[1739498739985,3.71225,2693.8,2693.1,3.71314]
[1739498740387,3.71225,2693.8,2693.2,6.91748568]
[1739498740541,3.712,2694.0,2693.2,3.88035955]
[1739498740739,3.712,2694.0,2693.4,3.0]
[1739498740938,4.13435762,2694.9,2693.4,3.0]
[1739498740939,3.71134,2694.5,2693.8,3.71217]
[1739498741233,3.71154,2694.3,2693.9,0.16776256]
[1739498741442,3.71154,2694.3,2693.7,6.71236]
[1739498741640,3.71154,2694.3,2694.0,0.16776256]
[1739498742019,3.71154,2694.3,2693.7,6.71236]
[1739498742348,3.71154,2694.3,2694.1,0.16776256]
[1739498742499,3.71154,2694.3,2693.8,3.71221]
[1739498742701,3.7114,2694.4,2694.2,0.16776256]
[1739498742925,3.71155,2694.3,2693.7,3.0]
[1739498743240,3.71155,2694.3,2693.7,0.752513]
[1739498743568,3.71211,2693.9,2693.5,0.8127]
[1739498743718,3.71241,2693.7,2693.5,0.8127]
[1739498743923,7.42432,2693.9,2693.5,0.8127]
[1739498744130,3.71244,2693.7,2693.5,0.8127]
[1739498744310,1.3467,2694.1,2693.2,0.7782]
[1739498744514,3.71288,2693.4,2692.8,4.92330732]
[1739498744755,3.71288,2693.4,2692.8,8.63682732]
[1739498745051,3.7125,2693.6,2692.9,3.0]
[1739498745253,3.7125,2693.6,2693.1,3.0]
[1739498745470,0.285,2694.0,2693.1,3.0]
[1739498745609,0.285,2694.0,2693.6,4.53035]
[1739498745814,0.285,2694.0,2693.6,0.8179]
[1739498746243,3.71156,2694.3,2693.7,3.71234]
[1739498746444,3.71156,2694.3,2693.8,0.82427]
[1739498746626,7.4227,2694.5,2693.8,4.53648]
[1739498746831,3.71133,2694.5,2693.9,3.71207]
[1739498749635,4.13435762,2694.6,2693.3,0.7558]
[1739498749840,3.7119,2694.1,2693.5,3.71256]
[1739498750166,3.7119,2694.1,2693.6,3.0]
[1739498750356,3.71189,2694.1,2693.6,3.0]
[1739498750923,3.71189,2694.1,2693.6,6.71246]
[1739498751126,3.7116,2694.3,2693.7,3.71236]
[1739498751349,3.7116,2694.3,2693.8,0.371236]
[1739498751553,3.71146,2694.4,2693.9,3.71205]
[1739498751753,7.84468762,2695.2,2693.9,3.71205]
[1739498751754,2.9434397,2695.4,2694.2,3.71165]
[1739498751962,3.71046,2695.1,2694.4,3.71131]
[1739498752163,0.9434397,2695.4,2694.3,3.71143]
[1739498752164,7.42179,2694.8,2694.5,0.742274]
[1739498752352,3.71087,2694.8,2694.3,3.71143]
[1739498752538,3.71087,2694.8,2694.6,0.16698173]
[1739498752739,3.71087,2694.8,2694.4,0.03711074]
[1739498752938,0.1467397,2695.4,2694.8,0.8214]
[1739498753553,3.71039,2695.2,2694.9,0.16683536]
[1739498753760,3.71057,2695.0,2694.9,0.16683536]
[1739498753957,3.71057,2695.0,2694.5,0.8214]
[1739498754263,3.71057,2695.0,2694.5,4.53264]
[1739498754562,3.71029,2695.3,2694.7,3.71095]